[Event "6th NTCC Final 2080"]
[Site "Lalitpur"]
[Date "2024.01.12"]
[Round "1.1"]
[White "Jaiswal, Rupesh"]
[Black "Thapa, Krishna"]
[Result "1/2-1/2"]
[ECO "B40"]
[WhiteElo "2009"]
[BlackElo "1944"]
[Annotator "TA"]
[PlyCount "67"]
[EventDate "2024.01.03"]
[EventType "k.o."]
[EventCountry "NEP"]
[SourceTitle "playchess.com"]
[Source "ChessBase"]
[SourceQuality "1"]
[TimeControl "5400+30"]

{[%evp 9,67,10,23,21,24,21,20,11,29,19,16,0,0,0,0,0,12,-14,30,19,12,17,10,0,0,0,-8,-13,0,0,9,0,3,9,7,0,0,0,37,0,4,-29994,-6004,-5775,0,0,2,0,4,3,2,2,7,0,3,0,0,0,0,0]} 1. e4 {[%emt 0:00:07]} c5 {[%emt 0:00:21]} 2. Nf3 {[%emt 0:00:05]} e6 {[%emt 0:00:04]} 3. g3 {[%emt 0:00:02]} Nc6 {[%emt 0:00:04]} 4. Bg2 {[%emt 0:00:04]} d5 {[%emt 0:00:08]} 5. exd5 {[%emt 0:00:13]} exd5 {[%emt 0:00:01]} 6. d4 {[%emt 0:00:10]} Bg4 {[%emt 0:00:53]} 7. O-O {[%emt 0:00:12]} cxd4 {[%emt 0:05:12]} 8. Nbd2 {[%emt 0:01:24]} Nf6 {[%emt 0:02:56]} 9. Nb3 {[%emt 0:00:20]} Be7 {[%emt 0:07:22]} 10. h3 {[%emt 0:01:16]} Bxf3 {[%emt 0:03:46]} 11. Bxf3 {[%emt 0:08:45]} Qb6 {[%emt 0:01:49]} 12. a4 {[%emt 0:16:52]} a5 {[%emt 0:00:45]} 13. Bg5 {[%emt 0:18:44][%mdl 1024] White has compensation.} Rd8 {[%emt 0:01:06]} 14. Qe2 {[%emt 0:08:56]} O-O {[%emt 0:05:21]} 15. Qb5 {[%emt 0:00:26]} Qc7 {[%emt 0:06:58]} 16. Bf4 {[%emt 0:07:00] This pair of bishops is nice.} Bd6 {[%emt 0:04:05]} 17. Bxd6 {[%emt 0:01:04]} Rxd6 {[%emt 0:00:28]} 18. Bg2 {[%emt 0:08:21]} Re8 {[%emt 0:11:52]} 19. Rad1 {[%emt 0:04:24]} Rde6 {[%emt 0:13:17]} 20. Nxd4 {[%emt 0:07:05]} Nxd4 {[%emt 0:04:29]} 21. Rxd4 {[%emt 0:00:13]} Qxc2 {[%emt 0:01:14]} 22. Bxd5 {[%emt 0:05:54]} Nxd5 {[%emt 0:14:28]} 23. Rxd5 {[%emt 0:00:30]} R6e7 {[%emt 0:00:30]} 24. Qc5 {[%emt 0:00:30]} Qxc5 {[%emt 0:00:41]} 25. b3 $4 {[%emt 0:00:02][%mdl 8192] [#]} (25. Rxc5 $11 Re5 26. Rfc1) 25... b6 $1 26. Rxc5 $19 {[%emt 0:00:38][%mdl 4096] Endgame. KRR-KRR} Re6 $2 {[%emt 0:00:47]} (26... bxc5 $19 27. Kg2 Re1 28. Rxe1 Rxe1) 27. Rb5 $11 {[%emt 0:00:17] The position is equal.} Rd8 {[%emt 0:15:23]} 28. Kg2 Rc8 {[%emt 0:00:00]} 29. Rd1 {[%emt 0:01:04]} g6 {[%emt 0:00:00]} 30. Rd3 {[%emt 0:01:15]} Kg7 {[%emt 0:00:00]} 31. Rf3 {[%emt 0:01:11]} Rcc6 {[%emt 0:00:00]} 32. b4 {[%emt 0:01:06]} axb4 {[%emt 0:00:00]} 33. Rxb4 {[%emt 0:00:02]} Rc2 {[%emt 0:00:00]} 34. Rbf4 {[%emt 0:00:25] Weighted Error Value: White=0.25 (precise) /Black=0.47.  Loses game:     	White=1     	---        Mistake:       	---       	Black=1      Inaccurate:     	White=2     	Black=2      OK:         	White=9     	Black=12     Best:        	White=1     	Black=1} 1/2-1/2

[Event "6th NTCC Final 2080"]
[Site "Lalitpur"]
[Date "2024.01.12"]
[Round "1.2"]
[White "Das, Singhesor"]
[Black "Dahal, Sushrut"]
[Result "1-0"]
[ECO "B43"]
[WhiteElo "1873"]
[BlackElo "1895"]
[Annotator "NA RC COMBH"]
[PlyCount "149"]
[EventDate "2024.01.03"]
[EventType "k.o."]
[EventCountry "NEP"]
[SourceTitle "playchess.com"]
[Source "ChessBase"]
[SourceQuality "1"]
[TimeControl "5400+30"]

1. e4 {[%emt 0:00:37]} c5 {[%emt 0:00:04]} 2. Nf3 {[%emt 0:00:46]} e6 {[%emt 0:00:42]} 3. d4 {[%emt 0:05:07]} cxd4 {[%emt 0:04:20]} 4. Nxd4 {[%emt 0:00:21]} a6 {[%emt 0:00:08]} 5. Be2 {[%emt 0:09:12]} Nf6 {[%emt 0:00:57]} 6. Nc3 {[%emt 0:02:11]} Qc7 {[%emt 0:02:27]} 7. a3 {[%emt 0:04:55]} Be7 {[%emt 0:00:43]} 8. O-O {[%emt 0:00:43]} O-O {[%emt 0:00:13]} 9. h3 {[%emt 0:11:22]} d6 {[%emt 0:01:57]} 10. Be3 {[%emt 0:03:14]} Nbd7 {[%emt 0:01:17]} 11. Bd3 {[%emt 0:02:30]} Ne5 {[%emt 0:04:00]} 12. Nde2 {[%emt 0:00:46]} b5 {[%emt 0:01:21]} 13. Ng3 {[%emt 0:01:01]} Bb7 {[%emt 0:01:23]} 14. Qe2 {[%emt 0:01:02]} Rac8 {[%emt 0:01:25]} 15. f4 $17 {[%emt 0:02:48]} (15. Bd4 $15) 15... Nc4 {[%emt 0:01:20]} 16. Bxc4 {[%emt 0:12:11]} Qxc4 {[%emt 0:00:27]} 17. Qd3 {[%emt 0:00:20]} Nd7 {[%emt 0:03:06]} 18. Rad1 {[%emt 0:00:52]} Qc6 {[%emt 0:00:43]} 19. Bd4 {[%emt 0:08:02]} Qc4 {[%emt 0:22:28]} 20. f5 {[%emt 0:04:31]} Qxd3 {[%emt 0:01:28]} 21. cxd3 {[%emt 0:00:33]} Bf6 {[%emt 0:08:38]} 22. Bxf6 {[%emt 0:02:29]} Nxf6 {[%emt 0:01:29]} 23. d4 {[%emt 0:00:48]} Nd7 {[%emt 0:02:27]} 24. d5 {[%emt 0:01:57]} e5 {[%emt 0:01:12]} 25. Rc1 {[%emt 0:04:11]} Nc5 {[%emt 0:06:59]} 26. Rf3 {[%emt 0:03:40]} Nb3 {[%emt 0:02:20]} 27. Rd1 {[%emt 0:00:29]} Na5 {[%emt 0:01:14]} 28. Rf2 {[%emt 0:00:47]} Nc4 {[%emt 0:07:27]} 29. Na2 {[%emt 0:05:02]} a5 {[%emt 0:00:30]} 30. Rc1 {[%emt 0:00:30]} f6 {[%emt 0:00:30]} 31. Rfc2 {[%emt 0:00:30]} g6 {[%emt 0:00:30]} 32. a4 {[%emt 0:00:30]} Ba6 33. axb5 {[%emt 0:00:30]} Bxb5 {[%emt 0:01:00]} 34. Nc3 {[%emt 0:00:07]} Bd7 {[%emt 0:01:27]} 35. Nd1 {[%emt 0:03:11]} Nb6 {[%emt 0:00:47]} 36. Kf2 {[%emt 0:01:17]} Rxc2+ {[%emt 0:01:52]} 37. Rxc2 {[%emt 0:00:01]} Rc8 {[%emt 0:00:18]} 38. Rxc8+ {[%emt 0:00:28]} Bxc8 {[%emt 0:00:27]} 39. fxg6 {[%emt 0:01:15]} hxg6 {[%emt 0:00:01]} 40. Ke3 {[%emt 0:00:18]} f5 {[%emt 0:01:31]} 41. Kf2 {[%emt 0:01:39]} Kf7 {[%emt 0:00:30]} 42. b3 {[%emt 0:00:14]} Kf6 {[%emt 0:01:01]} 43. Nc3 {[%emt 0:00:30]} Ba6 {[%emt 0:01:03]} 44. Nf1 {[%emt 0:00:59]} Nd7 {[%emt 0:02:22]} 45. Nd2 {[%emt 0:00:13]} Nc5 {[%emt 0:00:41]} 46. g4 {[%emt 0:01:12]} fxg4 {[%emt 0:00:53]} 47. hxg4 {[%emt 0:00:13]} Bd3 {[%emt 0:00:36]} 48. Ke3 {[%emt 0:01:43]} Ke7 {[%emt 0:01:38]} 49. Na4 {[%emt 0:00:23]} Bb5 {[%emt 0:02:01]} 50. Nxc5 {[%emt 0:00:32]} dxc5 {[%emt 0:00:02]} 51. g5 {[%emt 0:00:19]} Kd8 {[%emt 0:02:43]} 52. Nf3 {[%emt 0:01:26]} c4 {[%emt 0:00:45]} 53. bxc4 {[%emt 0:00:09]} Bxc4 {[%emt 0:00:11]} 54. Nxe5 {[%emt 0:00:13]} Bb5 {[%emt 0:01:15]} 55. Kd2 {[%emt 0:00:40]} Kc7 {[%emt 0:01:15]} 56. Nxg6 {[%emt 0:00:56]} Kd6 {[%emt 0:00:29]} 57. Nf8 {[%emt 0:00:56]} Be8 {[%emt 0:02:09]} 58. g6 {[%emt 0:00:48]} Ke7 {[%emt 0:00:21]} 59. g7 {[%emt 0:00:16]} Kf7 {[%emt 0:00:05]} 60. Ne6 {[%emt 0:00:24]} Bd7 {[%emt 0:00:12]} 61. Nc5 {[%emt 0:02:06]} Bb5 {[%emt 0:00:47]} 62. Nb7 {[%emt 0:00:19]} Kxg7 {[%emt 0:00:22]} 63. Nxa5 {[%emt 0:00:16]} Kf6 {[%emt 0:09:31]} 64. Ke3 {[%emt 0:00:01]} Ke5 {[%emt 0:09:48]} 65. Nb3 {[%emt 0:00:41]} Be8 {[%emt 0:00:28]} 66. Nd2 {[%emt 0:00:26]} Bb5 {[%emt 0:00:47]} 67. Nf3+ {[%emt 0:00:09]} Kd6 {[%emt 0:00:10]} 68. Kd4 {[%emt 0:00:11]} Ba4 {[%emt 0:00:36]} 69. e5+ {[%emt 0:00:11]} Kd7 {[%emt 0:00:22]} 70. Kc5 {[%emt 0:00:15]} Bb3 {[%emt 0:00:24]} 71. Nd4 {[%emt 0:00:16]} Ba2 {[%emt 0:00:23]} 72. e6+ {[%emt 0:00:33]} Ke8 {[%emt 0:00:33]} 73. Kd6 {[%emt 0:00:21]} Bb1 {[%emt 0:00:31]} 74. Kc7 {[%emt 0:00:16]} Ba2 {[%emt 0:01:25]} 75. d6 {[%emt 0:00:27]} 1-0

[Event "6th NTCC Final 2080"]
[Site "Lalitpur"]
[Date "2024.01.12"]
[Round "1.4"]
[White "Gautam, Anushna"]
[Black "Lohani, Sujana"]
[Result "0-1"]
[ECO "B06"]
[WhiteElo "1400"]
[BlackElo "1756"]
[Annotator "NA RC COMBH"]
[PlyCount "64"]
[EventDate "2024.01.03"]
[EventType "k.o."]
[EventCountry "NEP"]
[SourceTitle "playchess.com"]
[Source "ChessBase"]
[SourceQuality "1"]
[TimeControl "5400+30"]

1. e4 {[%emt 0:00:03]} g6 {[%emt 0:00:30]} 2. d4 {[%emt 0:00:21]} Bg7 {[%emt 0:00:08]} 3. Nc3 {[%emt 0:00:33]} d6 {[%emt 0:00:23]} 4. Be3 {[%emt 0:00:19]} a6 {[%emt 0:03:22]} 5. f3 {[%emt 0:02:29]} b5 {[%emt 0:01:46]} 6. Qd2 {[%emt 0:03:12]} Nd7 {[%emt 0:01:03]} 7. a4 {[%emt 0:02:22]} b4 {[%emt 0:05:16]} 8. Nd5 {[%emt 0:02:10]} c5 {[%emt 0:04:06]} 9. a5 {[%emt 0:04:00]} e6 {[%emt 0:03:05]} 10. Nf4 {[%emt 0:03:31]} cxd4 {[%emt 0:04:45]} 11. Bf2 {[%emt 0:00:38]} Rb8 {[%emt 0:04:57]} 12. Nd3 {[%emt 0:00:48]} Qc7 {[%emt 0:17:41]} 13. Nxb4 {[%emt 0:02:40]} e5 {[%emt 0:07:56]} 14. Nxa6 {[%emt 0:03:54]} Bxa6 {[%emt 0:00:23]} 15. Bxa6 {[%emt 0:00:24]} Rxb2 {[%emt 0:00:28]} 16. Bd3 {[%emt 0:01:50]} Bh6 {[%emt 0:03:53]} 17. Qd1 {[%emt 0:02:24]} Qc3+ {[%emt 0:04:11]} 18. Kf1 {[%emt 0:01:41]} Ne7 {[%emt 0:03:04]} 19. Ne2 {[%emt 0:01:57]} Qc7 {[%emt 0:04:09]} 20. Nxd4 {[%emt 0:01:33]} O-O {[%emt 0:03:40]} 21. Nb5 {[%emt 0:03:05]} Qc6 {[%emt 0:05:05]} 22. c4 {[%emt 0:02:57]} Nc5 {[%emt 0:03:51]} 23. Bxc5 {[%emt 0:08:08]} Qxc5 {[%emt 0:00:57]} 24. Be2 {[%emt 0:00:18]} Bd2 {[%emt 0:09:38]} 25. Rb1 {[%emt 0:04:54]} Ra2 {[%emt 0:00:57]} 26. a6 {[%emt 0:00:45]} Nc6 {[%emt 0:00:49]} 27. Ra1 {[%emt 0:02:35]} Rxa1 {[%emt 0:01:25]} 28. Qxa1 {[%emt 0:00:12]} Ba5 {[%emt 0:00:12]} 29. Qd1 {[%emt 0:01:09]} Bb6 {[%emt 0:00:19]} 30. Qe1 {[%emt 0:00:36]} Ra8 {[%emt 0:01:14]} 31. g4 {[%emt 0:01:41]} Rxa6 {[%emt 0:00:23]} 32. h4 {[%emt 0:01:43]} Ra1 {[%emt 0:00:27]} 0-1

[Event "6th NTCC Final 2080"]
[Site "Lalitpur"]
[Date "2024.01.12"]
[Round "1.5"]
[White "Adhikari, Kritisara"]
[Black "Shah, Abheek"]
[Result "0-1"]
[ECO "A48"]
[WhiteElo "1527"]
[BlackElo "1543"]
[Annotator "NA RC COMBH"]
[PlyCount "128"]
[EventDate "2024.01.03"]
[EventType "k.o."]
[EventCountry "NEP"]
[SourceTitle "playchess.com"]
[Source "ChessBase"]
[SourceQuality "1"]
[TimeControl "5400+30"]

1. d4 {[%emt 0:00:06]} Nf6 {[%emt 0:00:08]} 2. Bf4 {[%emt 0:00:11]} g6 {[%emt 0:00:26]} 3. e3 {[%emt 0:00:08]} Bg7 {[%emt 0:00:16]} 4. Nf3 {[%emt 0:00:17]} O-O {[%emt 0:00:34]} 5. Be2 {[%emt 0:00:53]} c5 {[%emt 0:00:49]} 6. c3 {[%emt 0:00:35]} b6 {[%emt 0:01:01]} 7. h3 {[%emt 0:01:36]} Bb7 {[%emt 0:01:36]} 8. Nbd2 {[%emt 0:01:21]} Nc6 {[%emt 0:01:21]} 9. O-O {[%emt 0:00:33]} d5 {[%emt 0:03:02]} 10. Ne5 {[%emt 0:07:43]} Nd7 {[%emt 0:04:15]} 11. Ndf3 {[%emt 0:03:41]} Ndxe5 {[%emt 0:08:01]} 12. dxe5 {[%emt 0:04:05]} e6 {[%emt 0:03:05]} 13. Bb5 {[%emt 0:02:59]} Ne7 {[%emt 0:02:42]} 14. Bh2 {[%emt 0:07:39]} Rc8 {[%emt 0:02:57]} 15. Qe2 {[%emt 0:05:44]} Rc7 {[%emt 0:08:10]} 16. Rfd1 {[%emt 0:01:41]} Qa8 {[%emt 0:01:45]} 17. Ne1 {[%emt 0:03:10]} Rd8 {[%emt 0:01:58]} 18. f4 {[%emt 0:05:25]} a6 {[%emt 0:07:32]} 19. Ba4 {[%emt 0:01:16]} Bf8 {[%emt 0:01:26]} 20. g4 {[%emt 0:06:29]} b5 {[%emt 0:04:57]} 21. Bc2 {[%emt 0:01:07]} Nc6 {[%emt 0:02:21]} 22. Bg3 {[%emt 0:03:19]} Be7 {[%emt 0:02:18]} 23. g5 {[%emt 0:02:06]} d4 {[%emt 0:03:21]} 24. Bf2 {[%emt 0:06:20]} dxc3 {[%emt 0:03:28]} 25. bxc3 {[%emt 0:00:10]} Rcd7 {[%emt 0:01:10]} 26. h4 {[%emt 0:06:37]} Na5 {[%emt 0:00:56]} 27. h5 {[%emt 0:06:01]} Nc4 {[%emt 0:00:56]} 28. Rxd7 {[%emt 0:04:14]} Rxd7 {[%emt 0:00:09]} 29. Rd1 {[%emt 0:03:25]} Qd8 {[%emt 0:00:10]} 30. Rxd7 {[%emt 0:03:51]} Qxd7 {[%emt 0:00:06]} 31. hxg6 {[%emt 0:10:26]} hxg6 {[%emt 0:00:30]} 32. Bg3 {[%emt 0:00:30]} Qd5 {[%emt 0:00:30]} 33. Kf2 {[%emt 0:00:30]} Nb6 {[%emt 0:00:30]} 34. Bb3 {[%emt 0:00:30]} Qd7 {[%emt 0:00:30]} 35. Bc2 {[%emt 0:00:30]} a5 {[%emt 0:00:30]} 36. Qd3 {[%emt 0:00:30]} Qxd3 {[%emt 0:00:30]} 37. Bxd3 {[%emt 0:00:30]} c4 {[%emt 0:00:30]} 38. Bc2 {[%emt 0:00:30]} Bc5 {[%emt 0:00:30]} 39. Nf3 {[%emt 0:00:30]} Bxf3 {[%emt 0:00:30]} 40. Kxf3 {[%emt 0:00:30]} Nd5 {[%emt 0:00:30]} 41. Kf2 {[%emt 0:01:47]} Nb6 {[%emt 0:35:04]} 42. Kf3 {[%emt 0:00:05]} Nd5 {[%emt 0:00:00]} 43. e4 {[%emt 0:01:35]} Nxc3 {[%emt 0:00:00]} 44. Be1 {[%emt 0:00:32]} Nxa2 {[%emt 0:00:00]} 45. Bxa5 {[%emt 0:00:17]} b4 {[%emt 0:00:00]} 46. Ke2 {[%emt 0:00:54]} Nc3+ {[%emt 0:00:00]} 47. Kd2 {[%emt 0:00:20]} Kf8 {[%emt 0:00:00]} 48. Kc1 {[%emt 0:00:43]} Ke8 {[%emt 0:00:00]} 49. Kb2 {[%emt 0:00:13]} Kd7 {[%emt 0:00:00]} 50. f5 {[%emt 0:00:17]} Kc6 {[%emt 0:00:00]} 51. fxg6 {[%emt 0:00:23]} fxg6 {[%emt 0:00:00]} 52. Bd8 {[%emt 0:00:08]} Kb5 {[%emt 0:00:00]} 53. Bc7 {[%emt 0:00:15]} Bd4 {[%emt 0:00:00]} 54. Kc1 {[%emt 0:00:36]} Be3+ {[%emt 0:00:00]} 55. Kb2 {[%emt 0:00:07]} Bxg5 {[%emt 0:00:00]} 56. Bd6 {[%emt 0:00:25]} Bf4 {[%emt 0:00:00]} 57. Bc7 {[%emt 0:01:39]} g5 {[%emt 0:00:00]} 58. Bd6 {[%emt 0:00:02]} g4 {[%emt 0:00:00]} 59. Bc7 {[%emt 0:00:42]} g3 {[%emt 0:00:00]} 60. Bb8 {[%emt 0:00:33]} Be3 {[%emt 0:00:00]} 61. Bc7 {[%emt 0:00:21]} g2 {[%emt 0:00:00]} 62. Bd6 {[%emt 0:00:13]} g1=Q {[%emt 0:00:00]} 63. Bxb4 {[%emt 0:00:07]} Kxb4 {[%emt 0:00:00]} 64. Bd3 {[%emt 0:00:13]} Qc1# {[%emt 0:00:00]} 0-1

[Event "6th NTCC Final 2080"]
[Site "Lalitpur"]
[Date "2024.01.12"]
[Round "1.6"]
[White "Duwal, Swornim"]
[Black "Dahal, Mission"]
[Result "1/2-1/2"]
[ECO "E70"]
[WhiteElo "1390"]
[BlackElo "1704"]
[Annotator "NA RC COMBH"]
[PlyCount "93"]
[EventDate "2024.01.03"]
[EventType "k.o."]
[EventCountry "NEP"]
[SourceTitle "playchess.com"]
[Source "ChessBase"]
[SourceQuality "1"]
[TimeControl "5400+30"]

1. d4 {[%emt 0:00:29]} Nf6 {[%emt 0:00:04]} 2. c4 {[%emt 0:00:09]} g6 {[%emt 0:00:04]} 3. Nc3 {[%emt 0:00:17]} Bg7 {[%emt 0:00:09]} 4. e4 {[%emt 0:00:08]} d6 {[%emt 0:00:05]} 5. Bg5 {[%emt 0:03:48]} O-O {[%emt 0:00:39]} 6. Qd2 {[%emt 0:01:27]} c5 {[%emt 0:07:55]} 7. d5 {[%emt 0:05:46]} Na6 {[%emt 0:02:08]} 8. Bd3 {[%emt 0:02:26]} Nc7 {[%emt 0:01:42]} 9. f4 {[%emt 0:04:28]} h6 {[%emt 0:00:26]} 10. Bxf6 {[%emt 0:00:21]} Bxf6 {[%emt 0:00:33]} 11. Nf3 {[%emt 0:00:30]} Bg4 {[%emt 0:05:31]} 12. O-O {[%emt 0:01:29]} Bxf3 {[%emt 0:12:07]} 13. Rxf3 {[%emt 0:00:24]} e6 {[%emt 0:00:05]} 14. Re1 {[%emt 0:05:29]} exd5 {[%emt 0:00:17]} 15. exd5 {[%emt 0:00:16]} Bd4+ {[%emt 0:03:34]} 16. Kh1 {[%emt 0:00:43]} f5 {[%emt 0:02:51]} 17. Ne2 {[%emt 0:06:27]} Bg7 {[%emt 0:01:49]} 18. Ng3 {[%emt 0:05:20]} a6 {[%emt 0:00:28]} 19. Rfe3 {[%emt 0:02:02]} b5 {[%emt 0:03:48]} 20. b3 {[%emt 0:10:22]} bxc4 {[%emt 0:00:38]} 21. Bxc4 {[%emt 0:02:04]} Bf6 {[%emt 0:04:13]} 22. Ne2 {[%emt 0:06:58]} Qd7 {[%emt 0:02:07]} 23. Ng1 {[%emt 0:02:25]} Rae8 {[%emt 0:01:38]} 24. Rxe8 {[%emt 0:01:24]} Rxe8 {[%emt 0:00:13]} 25. Rxe8+ {[%emt 0:00:05]} Qxe8 {[%emt 0:00:30]} 26. Qe2 {[%emt 0:00:11]} Qxe2 {[%emt 0:00:54]} 27. Nxe2 {[%emt 0:00:16]} Kf7 {[%emt 0:00:39]} 28. Kg1 {[%emt 0:03:16]} Ke7 {[%emt 0:03:11]} 29. Kf2 {[%emt 0:00:27]} Kd7 {[%emt 0:01:42]} 30. Ke3 {[%emt 0:00:40]} Ke7 {[%emt 0:00:49]} 31. Kd3 {[%emt 0:01:00]} Kd7 {[%emt 0:00:35]} 32. Ke3 {[%emt 0:00:46]} a5 {[%emt 0:10:20]} 33. a4 {[%emt 0:00:34]} Ke7 {[%emt 0:00:14]} 34. h3 {[%emt 0:01:36]} h5 {[%emt 0:05:03]} 35. Kf3 {[%emt 0:05:58]} h4 {[%emt 0:00:54]} 36. g4 {[%emt 0:00:17]} hxg3 {[%emt 0:00:17]} 37. Kxg3 {[%emt 0:02:03]} Kf7 {[%emt 0:00:47]} 38. Ng1 {[%emt 0:02:46]} g5 {[%emt 0:07:18]} 39. Nf3 {[%emt 0:00:30]} Kg6 {[%emt 0:00:30]} 40. fxg5 {[%emt 0:00:30]} Bxg5 {[%emt 0:00:30]} 41. h4 {[%emt 0:00:30]} Be3 {[%emt 0:00:30]} 42. Ne5+ {[%emt 0:06:22]} Kf6 {[%emt 0:02:24]} 43. Nd3 {[%emt 0:00:30]} Ne8 {[%emt 0:00:42]} 44. Kf3 {[%emt 0:04:51]} Bh6 {[%emt 0:01:15]} 45. Nf4 {[%emt 0:02:16]} Bxf4 {[%emt 0:00:19]} 46. Kxf4 {[%emt 0:00:01]} Ng7 {[%emt 0:06:40]} 47. Be2 {[%emt 0:00:25]} 1/2-1/2

[Event "6th NTCC Final 2080"]
[Site "Lalitpur"]
[Date "2024.01.12"]
[Round "1.7"]
[White "Ghimire, Sabin Chandra"]
[Black "Kachhepati, Rajesh"]
[Result "1-0"]
[ECO "D02"]
[WhiteElo "1869"]
[BlackElo "1747"]
[Annotator "NA RC COMBH"]
[PlyCount "65"]
[EventDate "2024.01.03"]
[EventType "k.o."]
[EventCountry "NEP"]
[SourceTitle "playchess.com"]
[Source "ChessBase"]
[SourceQuality "1"]
[TimeControl "5400+30"]

1. Nf3 {[%emt 0:00:00]} d5 {[%emt 0:00:03]} 2. g3 {[%emt 1:31:30]} c6 {[%emt 0:03:25]} 3. Bg2 {[%emt 0:00:00]} g6 {[%emt 0:01:13]} 4. O-O {[%emt 0:00:00]} Bg7 {[%emt 0:00:06]} 5. d4 {[%emt 0:00:00]} f5 {[%emt 0:01:09]} 6. c4 {[%emt 0:00:00]} e6 {[%emt 0:00:22]} 7. b3 {[%emt 0:00:00]} Nf6 {[%emt 0:00:11]} 8. Ba3 {[%emt 0:00:00]} Ne4 {[%emt 0:00:38]} 9. Qc2 {[%emt 0:00:00]} Nd7 {[%emt 0:02:30]} 10. e3 {[%emt 0:00:00]} Kf7 {[%emt 0:00:43]} 11. Bb2 {[%emt 0:00:00]} Re8 {[%emt 0:00:32]} 12. Nbd2 {[%emt 0:00:00]} Kg8 {[%emt 0:00:35]} 13. Rad1 {[%emt 0:00:00]} b6 {[%emt 0:02:32]} 14. Ne5 {[%emt 0:00:00]} Bb7 {[%emt 0:01:08]} 15. Ndf3 {[%emt 0:00:00]} Rc8 {[%emt 0:00:35]} 16. Nd3 {[%emt 0:00:00]} Ba6 {[%emt 0:05:57]} 17. Nfe5 {[%emt 0:00:00]} Ng5 {[%emt 0:04:02]} 18. h4 {[%emt 0:00:00]} Nxe5 {[%emt 0:01:12]} 19. Nxe5 {[%emt 0:00:00]} Bxe5 {[%emt 0:01:17]} 20. dxe5 {[%emt 0:00:00]} Nf7 {[%emt 0:00:20] [#]} 21. e4 $1 {[%emt 0:00:00]} fxe4 {[%emt 0:02:06]} 22. Bxe4 {[%emt 0:00:00]} Qe7 $16 {[%emt 0:01:21]} (22... Kg7 $142) 23. Bxg6 {[%emt 0:00:00]} dxc4 {[%emt 0:06:03]} 24. Bxh7+ {[%emt 0:00:00]} Kh8 {[%emt 0:00:27]} 25. bxc4 {[%emt 0:00:00]} Bxc4 {[%emt 0:01:12]} 26. Qxc4 {[%emt 0:00:00]} Kxh7 {[%emt 0:00:16]} 27. Qe4+ {[%emt 0:00:00]} Kh8 {[%emt 0:02:20]} 28. Qg6 {[%emt 0:00:00]} Rcd8 {[%emt 0:01:57]} 29. Rd6 {[%emt 0:00:00]} c5 {[%emt 0:04:09]} 30. Re1 {[%emt 0:00:00]} Rc8 {[%emt 0:01:03]} 31. Re4 {[%emt 0:00:00]} Nd8 {[%emt 0:00:49]} 32. Rg4 {[%emt 0:00:00]} Qf7 {[%emt 0:02:24]} 33. Qh6+ {[%emt 0:00:00]} 1-0

[Event "6th NTCC Final 2080"]
[Site "Lalitpur"]
[Date "2024.01.12"]
[Round "1.8"]
[White "Silwal, Purushottam"]
[Black "Nepal, Prakash Chandra"]
[Result "1/2-1/2"]
[ECO "B40"]
[WhiteElo "1831"]
[BlackElo "1900"]
[Annotator "TA"]
[PlyCount "109"]
[EventDate "2024.01.03"]
[EventType "k.o."]
[EventCountry "NEP"]
[SourceTitle "playchess.com"]
[Source "ChessBase"]
[SourceQuality "1"]
[TimeControl "5400+30"]

{[%evp 9,109,1,35,15,56,58,47,49,52,15,54,0,48,0,0,0,78,96,90,66,69,37,55,33,44,12,22,20,14,3,2,0,0,0,0,0,0,0,3,8,16,14,13,0,0,0,0,0,13,13,10,6,20,13,9,5,6,5,6,6,7,7,7,7,7,7,7,7,8,7,7,0,0,0,7,0,0,0,0,0,21,8,8,0,0,0,0,0,0,0,0,0,0,0,0,0,0,0,0,0,0,0]} 1. e4 {[%emt 0:00:17]} c5 {[%emt 0:00:13]} 2. Nf3 {[%emt 0:00:13]} e6 {[%emt 0:00:05]} 3. b3 {[%emt 0:00:16]} Nc6 {[%emt 0:03:03]} 4. Bb2 {[%emt 0:00:13]} d5 {[%emt 0:06:06]} 5. Bb5 {[%emt 0:00:22]} d4 {[%emt 0:05:17]} 6. c3 {[%emt 0:07:20]} dxc3 {[%emt 0:03:33]} 7. Nxc3 {[%emt 0:00:14]} Bd7 {[%emt 0:00:22]} 8. O-O {[%emt 0:00:56] Weiß steht etwas besser.} Nge7 {[%emt 0:09:12]} 9. Re1 {[%emt 0:03:06]} Ng6 {[%emt 0:00:33]} 10. d4 {[%emt 0:02:04]} (10. Bxc6 $1 $14 Bxc6 11. d4) 10... cxd4 {[%emt 0:15:07]} (10... Nxd4 $11 {kam in Betracht.} 11. Nxd4 cxd4 12. Qxd4 Bxb5 13. Nxb5 a6) 11. Nxd4 {[%emt 0:00:21]} (11. Bxc6 $1 $14 {war vorzuziehen.} Bxc6 12. Nxd4) 11... Nxd4 $11 {[%emt 0:12:37]} 12. Qxd4 {[%emt 0:00:35]} a6 {[%emt 0:04:02]} (12... Bxb5 $11 {bleibt in der Remisbreite.} 13. Nxb5 a6) 13. Bxd7+ $16 {[%emt 0:03:53]} Qxd7 {[%emt 0:00:03]} 14. Qxd7+ {[%emt 0:00:40]} Kxd7 {[%emt 0:00:01]} 15. Red1+ {[%emt 0:00:14]} Ke8 {[%emt 0:03:29]} 16. Rac1 {[%emt 0:00:50]} Rd8 {[%emt 0:00:50]} 17. Ne2 {[%emt 0:02:46]} Rxd1+ {[%emt 0:00:21] Die Stellung ist ausgeglichen.} 18. Rxd1 {[%emt 0:00:10]} f6 {[%emt 0:06:19]} 19. Nd4 {[%emt 0:03:23]} Kf7 {[%emt 0:01:10]} 20. Kf1 {[%emt 0:09:14]} Be7 {[%emt 0:03:22]} 21. Rc1 {[%emt 0:01:17]} Bd6 {[%emt 0:00:09] Wehrt Rc7+ ab} 22. g3 {[%emt 0:00:40]} Ne5 {[%emt 0:03:53]} 23. Ke2 {[%emt 0:01:04]} Nd7 {[%emt 0:00:16]} 24. f4 {[%emt 0:01:21]} Re8 {[%emt 0:00:11]} 25. Nf3 {[%emt 0:09:31]} e5 {[%emt 0:04:57]} 26. f5 {[%emt 0:07:36]} Nc5 {[%emt 0:01:54]} 27. Ke3 {[%emt 0:00:47]} Rd8 {[%emt 0:04:56]} 28. Rd1 {[%emt 0:01:19]} Be7 {[%emt 0:02:49]} 29. Rxd8 {[%emt 0:00:34]} Bxd8 $11 {[%emt 0:00:01][%mdl 4096] Endspiel. KBN-KBN} 30. Ba3 {[%emt 0:00:57]} Nd7 {[%emt 0:00:38]} 31. Kd3 {[%emt 0:00:41]} Be7 {[%emt 0:00:30]} 32. Bxe7 {[%emt 0:04:18]} Kxe7 {[%emt 0:00:09] KN-KN} 33. b4 {[%emt 0:09:47]} b5 {[%emt 0:00:30]} 34. Nd2 {[%emt 0:00:30]} Nb6 {[%emt 0:00:30]} 35. Nb3 {[%emt 0:00:30]} Na4 {[%emt 0:00:30]} 36. g4 {[%emt 0:00:30]} Kd6 {[%emt 0:00:30]} 37. h4 {[%emt 0:00:30]} h6 {[%emt 0:00:30]} 38. Nd2 {[%emt 0:00:30]} Nb2+ {[%emt 0:00:30]} 39. Kc2 {[%emt 0:00:30]} Na4 {[%emt 0:00:30]} 40. Nf3 {[%emt 0:00:30]} Nb6 {[%emt 0:00:30]} 41. Nd2 {[%emt 0:00:57]} Na4 {[%emt 0:03:46]} 42. Nf3 {[%emt 0:11:11]} Nb6 {[%emt 0:00:48]} 43. g5 {[%emt 0:01:48]} hxg5 {[%emt 0:00:16]} 44. hxg5 {[%emt 0:00:12]} Nc4 {[%emt 0:00:05]} 45. gxf6 {[%emt 0:03:09]} gxf6 {[%emt 0:00:04]} 46. Ng1 {[%emt 0:04:09]} a5 {[%emt 0:05:07]} 47. Ne2 {[%emt 0:08:35]} axb4 {[%emt 0:00:21]} 48. Ng3 $1 {[%emt 0:01:16]} Na5 {[%emt 0:01:37]} 49. Nh5 {[%emt 0:00:34]} Ke7 {[%emt 0:00:01]} 50. Ng7 $1 {[%emt 0:00:56]} Nc4 {[%emt 0:00:48]} 51. Nh5 {[%emt 0:00:30]} Na5 {[%emt 0:00:31]} 52. Ng3 {[%emt 0:00:29]} Kd6 {[%emt 0:00:12]} 53. Nh5 {[%emt 0:00:06]} Ke7 {[%emt 0:00:06]} 54. Ng3 {[%emt 0:00:11]} Kf7 {[%emt 0:03:40]} 55. Nh5 {[%emt 0:00:30] Gewichteter Fehlerwert: Weiß=0.08 (makellos) /Schwarz=0.09 (makellos) .  Fehler:       	Weiß=2     	Schwarz=2     Ungenau:       	Weiß=3     	Schwarz=2     OK:         	Weiß=18    	Schwarz=20    Bester:       	---       	Schwarz=3     Stark:        	Weiß=2     	---} 1/2-1/2